bitfinex-derivatives/quotes_SOLF0:USTF0_20251115
["timestamp","ask_amount","ask_price","bid_price","bid_amount"]
[1763193978152,1.60928386,142.3,142.27,3.25]
[1763193982655,1.60928386,142.3,142.26,0.04735414]
[1763193982957,1.56,142.29,142.26,0.04735414]
[1763193986456,1.56,142.29,142.26,3.29735414]
[1763193986855,1.56,142.29,142.26,0.04735414]
[1763193989854,1.56,142.27,142.26,0.04735414]
[1763193990060,1.56602481,142.28,142.26,0.04735414]
[1763193990954,2.96602481,142.28,142.18,3.25]
[1763193991155,1.56602481,142.25,142.18,3.25]
[1763193991458,1.56602481,142.27,142.2,1.56602481]
[1763193992258,0.05235134,142.25,142.22,0.04826919]
[1763193995364,1.61837615,142.25,142.22,0.04826919]
[1763193997864,1.56602481,142.24,142.22,0.04826919]
[1763193998970,0.05235134,142.25,142.22,0.04826919]
[1763194003268,1.56602481,142.24,142.22,0.04826919]
[1763194007484,1.56602481,142.24,142.18,3.24]
[1763194008474,0.04428706,142.22,142.2,0.04980163]
[1763194010287,0.04428706,142.22,142.2,3.28980163]
[1763194011689,1.56602481,142.29,142.22,3.24]
[1763194011883,84.42,142.3,142.26,3.24]
[1763194012887,0.04477523,142.29,142.27,0.04869956]
[1763194026991,2.49216258,142.29,142.27,0.04869956]
[1763194028592,2.49216258,142.29,142.22,3.13]
[1763194029593,2.49216258,142.29,142.24,0.04600269]
[1763194031192,8.97617947,142.29,142.24,0.04600269]
[1763194031591,2.44738735,142.27,142.24,0.04600269]
[1763194034296,8.93140424,142.27,142.24,0.04600269]
[1763194034700,0.45399731,142.23,142.22,3.13]
[1763194034898,8.93140424,142.27,142.22,3.13]
[1763194035399,2.44738735,142.27,142.22,3.13]
[1763194035802,0.05298244,142.26,142.23,3.21862038]
[1763194037097,2.44738735,142.31,142.23,3.21862038]
[1763194038100,0.04487976,142.28,142.23,3.21862038]
[1763194040003,0.04487976,142.28,142.25,3.19]
[1763194040706,84.4,142.32,142.25,3.19]
[1763194040903,84.4,142.32,142.27,3.19]
[1763194040904,80.88312651,142.32,142.27,3.19]
[1763194041107,75.6078177,142.32,142.29,3.19]
[1763194041406,75.6078177,142.32,142.3,8.79218374]
[1763194041601,75.6078177,142.32,142.31,8.79218374]
[1763194044013,78.05520505,142.32,142.26,3.19]
[1763194044709,2.44738735,142.32,142.26,3.19]
[1763194045106,0.04680202,142.3,142.28,3.23732847]
[1763194046104,6.48401689,142.36,142.28,3.23732847]
[1763194046308,93.33140424,142.38,142.29,3.19]
[1763194047409,0.05347137,142.35,142.33,3.19]
[1763194049111,0.05347137,142.35,142.32,0.05231522]
[1763194050209,2.44738735,142.34,142.32,0.05231522]
[1763194050605,10.33140424,142.34,142.26,3.19]
[1763194050811,2.44738735,142.31,142.26,3.19]
[1763194051811,0.05063885,142.3,142.27,3.24048652]
[1763194055016,2.4980262,142.3,142.27,3.24048652]
[1763194056016,2.4980262,142.3,142.28,8.79312158]
[1763194056210,2.4980262,142.3,142.29,8.79312158]
[1763194060012,2.4980262,142.3,142.27,0.05048652]
[1763194060212,2.44738735,142.28,142.27,0.05048652]
[1763194061217,2.44738735,142.28,142.24,3.19]
[1763194061218,0.44951348,142.26,142.24,3.19]
[1763194061516,2.44738735,142.28,142.24,3.19]
[1763194062418,2.44738735,142.28,142.18,6.56151737]
[1763194062419,0.05130776,142.27,142.25,3.2154639]
[1763194067417,2.44738735,142.3,142.25,3.2154639]
[1763194068517,0.04599981,142.29,142.25,3.2154639]
[1763194076927,0.04599981,142.29,142.27,3.19]
[1763194077531,8.07196331,142.34,142.27,3.19]
[1763194078429,0.04462789,142.32,142.29,3.23939273]
[1763194079322,1.61044817,142.32,142.29,3.23939273]
[1763194083230,8.1165912,142.32,142.29,0.04939273]
[1763194083822,1.61044817,142.32,142.29,0.04939273]
[1763194084221,8.1165912,142.32,142.29,0.04939273]
[1763194084921,1.61044817,142.32,142.29,0.04939273]
[1763194085432,8.1165912,142.32,142.29,0.04939273]
[1763194085932,1.61044817,142.32,142.29,0.04939273]
[1763194093242,8.1165912,142.32,142.29,0.04939273]
[1763194100444,1.56582028,142.3,142.29,0.04939273]
[1763194102455,6.50614303,142.31,142.29,0.04939273]
[1763194102652,1.56582028,142.3,142.29,0.04939273]
[1763194102846,2.78925539,142.3,142.29,0.04939273]
[1763194105755,1.56582028,142.31,142.29,3.40939273]
[1763194109255,1.26786948,142.32,142.29,3.40939273]
[1763194111457,0.04462789,142.32,142.29,3.40939273]
[1763194111955,0.04462789,142.32,142.31,3.36]
[1763194112160,6.50614303,142.37,142.31,3.36]
[1763194112857,2.98997635,142.37,142.33,3.36]
[1763194113063,0.05274844,142.36,142.35,3.36]
[1763194113263,0.05274844,142.36,142.35,12.15041671]
[1763194113562,0.05274844,142.36,142.35,8.79041671]
[1763194113761,0.05274844,142.36,142.35,11.87041671]
[1763194114754,82.11572632,142.38,142.36,3.08]
[1763194115062,82.11572632,142.38,142.37,11.87041671]
[1763194115764,73.32826181,142.38,142.37,11.87041671]
[1763194116666,0.04820462,142.39,142.37,11.87041671]
[1763194116866,0.04820462,142.39,142.38,8.79041671]
[1763194117166,1.27069421,142.39,142.38,8.79041671]
[1763194117662,1.4,142.38,142.27,3.08]
[1763194117867,1.56582028,142.3,142.27,3.08]
[1763194118765,1.61918308,142.3,142.27,3.13279775]
[1763194121671,0.0533628,142.3,142.27,3.13279775]
[1763194127676,1.56582028,142.34,142.27,3.13279775]
[1763194127974,1.56582028,142.34,142.28,1.56582028]
[1763194128670,0.05277882,142.32,142.28,4.64582028]
[1763194134080,0.05277882,142.32,142.29,3.08]
[1763194140984,0.05277882,142.32,142.28,3.08]
[1763194142181,2.49955311,142.32,142.27,0.05279775]
[1763194142577,2.44677429,142.29,142.27,0.05279775]
[1763194143176,2.44677429,142.29,142.23,3.08]
[1763194143389,2.44677429,142.27,142.18,3.08]
[1763194144083,0.05374153,142.24,142.21,0.05021928]
[1763194146089,2.44677429,142.22,142.21,0.05021928]
[1763194146489,0.44978072,142.19,142.17,3.12]
[1763194146684,2.44677429,142.22,142.17,3.12]
[1763194147790,0.0525724,142.21,142.19,3.12]
[1763194148088,0.04601953,142.21,142.19,3.16553428]
[1763194149588,2.44677429,142.26,142.19,3.16553428]
[1763194150180,0.05,142.23,142.19,0.04553428]
[1763194150488,2.49677429,142.22,142.17,3.12]
[1763194150684,0.0513324,142.21,142.19,3.12]
[1763194155699,0.1013324,142.21,142.19,3.12]
[1763194155996,0.0513324,142.21,142.18,3.1887329]
[1763194179714,0.1013324,142.21,142.18,3.1887329]
[1763194179910,0.05,142.2,142.18,3.1887329]
[1763194180110,0.05,142.19,142.15,3.12]
[1763194180920,2.49677429,142.2,142.15,3.12]
[1763194181324,0.05405506,142.19,142.17,3.12]
[1763194181515,0.049784,142.19,142.17,3.17112111]
[1763194183222,2.44677429,142.22,142.17,3.17112111]
[1763194183223,6.44716673,142.25,142.17,3.17112111]
[1763194183422,6.44716673,142.25,142.18,3.12]
[1763194183720,8.94394102,142.26,142.18,3.12]
[1763194184217,0.05334299,142.23,142.22,3.12]
[1763194186121,2.50011728,142.23,142.22,3.12]
[1763194187316,0.05334299,142.23,142.22,3.12]
[1763194189418,2.50011728,142.23,142.22,3.12]
[1763194190224,0.05334299,142.23,142.22,3.12]
[1763194192225,8.89394102,142.26,142.22,3.12]
[1763194193118,0.05362134,142.25,142.22,3.12]
[1763194198529,2.44677429,142.26,142.22,3.12]
[1763194199631,0.05238433,142.25,142.22,3.12]
[1763194200333,2.44677429,142.26,142.22,3.12]
[1763194200831,1.56721112,142.26,142.22,3.12]
[1763194201232,1.56721112,142.24,142.22,3.12]
[1763194201432,1.61913521,142.24,142.22,3.12]
[1763194206141,1.56721112,142.26,142.22,3.12]
[1763194207241,0.05291473,142.25,142.24,3.33]
[1763194210942,1.56721112,142.26,142.24,3.33]
[1763194211950,1.61754987,142.26,142.24,3.33]
[1763194213945,0.05033875,142.26,142.24,3.33]
[1763194214644,1.56721112,142.29,142.24,3.33]
[1763194215141,1.56721112,142.27,142.24,3.33]
[1763194215542,1.61332451,142.27,142.24,3.37951776]
[1763194217648,0.04611339,142.27,142.24,3.37951776]
[1763194218544,1.56721112,142.32,142.25,3.05]
[1763194218847,1.56721112,142.3,142.25,3.05]
[1763194219548,0.05397916,142.29,142.27,3.05]
[1763194220148,84.42,142.34,142.27,3.05]
[1763194220451,2.78970071,142.39,142.32,3.05]
[1763194220839,0.36,142.41,142.32,3.05]
[1763194220840,6.44716673,142.43,142.32,3.05]
[1763194221143,6.44716673,142.43,142.36,0.05364443]
[1763194221144,0.05143801,142.39,142.36,0.05364443]
[1763194221445,0.05143801,142.39,142.37,3.05]
[1763194221649,1.56721112,142.42,142.37,3.05]
[1763194222143,1.22242518,142.43,142.37,3.05]
[1763194222347,1.56721112,142.45,142.38,3.05]
[1763194222541,1.56721112,142.43,142.38,3.05]
[1763194222739,1.56721112,142.41,142.39,0.04453769]
[1763194223050,1.56721112,142.41,142.39,0.05208393]
[1763194223051,4.69092019,142.41,142.39,0.05208393]
[1763194223352,3.07,142.4,142.39,0.05208393]
[1763194224339,4.69092019,142.41,142.39,0.05208393]
[1763194224550,1.62092019,142.41,142.39,3.10208393]
[1763194225446,1.62092019,142.41,142.39,0.05208393]
[1763194225745,4.69092019,142.41,142.39,0.05208393]
[1763194225950,0.05370907,142.41,142.39,3.10208393]
[1763194230244,1.56721112,142.4,142.39,0.05208393]
[1763194230453,4.63721112,142.4,142.39,0.05208393]
[1763194230951,4.63721112,142.4,142.36,3.05]
[1763194230952,1.56721112,142.37,142.29,3.05]
[1763194231551,1.22225344,142.45,142.35,3.05]
[1763194231752,1.56721112,142.44,142.37,3.05]
[1763194231952,3.07,142.41,142.37,3.05]
[1763194232253,1.56721112,142.4,142.39,3.09928059]
[1763194232456,0.04768153,142.41,142.39,3.05]
[1763194237552,3.09768153,142.41,142.38,0.04787185]
[1763194237860,4.61721112,142.4,142.38,0.04787185]
[1763194238860,0.04768153,142.41,142.38,0.04787185]
[1763194239056,3.09768153,142.41,142.38,0.04787185]
[1763194239761,6.85216676,142.39,142.38,0.04787185]
[1763194240165,3.05,142.4,142.38,0.04787185]
[1763194241563,0.04768153,142.41,142.38,3.32787185]
[1763194242864,3.09768153,142.41,142.38,0.04787185]
[1763194243062,6.85216676,142.4,142.38,0.04787185]
[1763194243261,3.05,142.39,142.38,0.04787185]
[1763194243964,3.80216676,142.4,142.38,0.04787185]
[1763194244368,3.80216676,142.4,142.38,3.32787185]
[1763194245562,0.04768153,142.41,142.38,3.32787185]
[1763194245762,3.09768153,142.41,142.38,3.32787185]
[1763194245960,6.85216676,142.4,142.38,0.04787185]
[1763194251868,3.05,142.4,142.38,0.04787185]
[1763194261078,3.05,142.39,142.38,0.04787185]
[1763194261575,3.05,142.38,142.29,3.28]
[1763194261775,3.05,142.35,142.29,3.28]
[1763194262682,0.05388118,142.33,142.31,3.3327703]
[1763194262883,3.05,142.35,142.31,3.3327703]
[1763194263876,3.19383532,142.34,142.31,3.3327703]
[1763194264077,3.14,142.33,142.31,0.0527703]
[1763194264281,2.4441939,142.32,142.31,0.0527703]
[1763194264478,3.14,142.31,142.25,3.34]
[1763194265479,3.19234866,142.29,142.27,0.04522984]
[1763194265678,3.19023491,142.29,142.27,0.04522984]
[1763194277194,0.05023491,142.29,142.27,3.18522984]
[1763194277793,3.1,142.35,142.29,3.14]
[1763194278694,0.05314361,142.33,142.31,0.04554406]
[1763194279586,0.05314361,142.33,142.31,3.18554406]
[1763194279994,3.15314361,142.33,142.31,0.04554406]
[1763194281795,0.05314361,142.33,142.31,3.18554406]
[1763194288498,3.1,142.39,142.32,2.4441939]
[1763194288700,3.1,142.41,142.33,3.14]
[1763194289696,0.04990012,142.38,142.36,3.18970383]
[1763194291700,3.14990012,142.38,142.36,3.18970383]
[1763194292492,0.04990012,142.38,142.36,3.18970383]
[1763194300003,3.08,142.36,142.28,3.28]
[1763194300313,5.5241939,142.31,142.28,3.28]
[1763194300703,2.4441939,142.36,142.28,3.28]
[1763194300903,5.5241939,142.36,142.28,3.28]
[1763194301114,0.04633336,142.33,142.32,3.28]
[1763194302914,0.04633336,142.33,142.31,0.05237857]
[1763194303115,3.08,142.32,142.31,0.05237857]
[1763194306808,3.08,142.32,142.26,3.28]
[1763194307112,5.5241939,142.29,142.26,3.28]
[1763194307314,3.08,142.28,142.23,3.28]
[1763194308014,0.0470776,142.27,142.25,3.28]
[1763194310708,2.4441939,142.31,142.25,3.28]
[1763194311817,0.05080361,142.29,142.25,3.28]
[1763194314413,0.05080361,142.29,142.26,3.28]
[1763194320921,5.5241939,142.33,142.26,3.28]
[1763194321930,0.04958867,142.31,142.29,3.28]
[1763194323531,4.64606955,142.3,142.28,0.04993146]
[1763194325125,3.14,142.29,142.28,0.04993146]
[1763194325324,4.70606955,142.3,142.28,0.04993146]
[1763194325525,3.14,142.29,142.28,0.04993146]
[1763194327332,4.70606955,142.3,142.28,0.04993146]
[1763194328634,3.14,142.29,142.28,0.04993146]
[1763194334538,4.77606955,142.3,142.28,0.04993146]
[1763194335748,1.56606955,142.3,142.28,3.40993146]
[1763194335940,0.04958867,142.31,142.28,3.40993146]
[1763194338837,1.56606955,142.32,142.28,3.40993146]
[1763194339842,1.56606955,142.34,142.28,3.40993146]
[1763194341540,4.77606955,142.34,142.28,3.40993146]
[1763194341742,1.56606955,142.34,142.28,3.40993146]
[1763194356356,1.56606955,142.32,142.28,3.40993146]
[1763194356564,3.07,142.31,142.28,3.40993146]
[1763194356754,3.07,142.29,142.28,0.04993146]
[1763194357056,3.07,142.29,142.27,0.04737739]
[1763194357260,4.63606955,142.28,142.27,0.05401627]
[1763194359956,1.56606955,142.28,142.27,0.05401627]
[1763194360359,1.56606955,142.28,142.2,3.22]
[1763194360560,1.56606955,142.25,142.2,3.22]
[1763194361364,0.04440565,142.24,142.22,3.22]
[1763194362969,1.56606955,142.23,142.21,3.27229429]
[1763194363760,0.71440565,142.24,142.21,3.27229429]
[1763194364058,0.04440565,142.24,142.21,3.27229429]
[1763194366262,0.71440565,142.24,142.21,3.27229429]
[1763194377973,0.04440565,142.24,142.21,3.27229429]
[1763194382076,0.67,142.28,142.21,3.27229429]
[1763194382978,0.02876703,142.26,142.21,3.27229429]
[1763194385981,0.69876703,142.26,142.21,3.27229429]
[1763194386182,0.02876703,142.26,142.21,3.27229429]
[1763194386581,0.69876703,142.26,142.21,3.27229429]
[1763194399190,6.4413276,142.31,142.21,3.27229429]
[1763194399489,6.4413276,142.31,142.21,3.22]
[1763194400284,6.4413276,142.31,142.25,0.05119731]
[1763194400488,6.4413276,142.31,142.25,3.20119731]
[1763194400785,6.4413276,142.3,142.25,3.20119731]
[1763194402290,6.4413276,142.29,142.25,3.20119731]
[1763194402492,6.34544716,142.31,142.26,11.94400452]
[1763194402693,6.34544716,142.31,142.27,8.79400452]
[1763194402885,2.44825337,142.32,142.26,3.15]
[1763194402886,2.44825337,142.32,142.28,8.79400452]
[1763194403086,2.44825337,142.32,142.29,8.84291329]
[1763194403384,2.44825337,142.32,142.3,8.79400452]
[1763194403581,2.44825337,142.32,142.31,8.79400452]
[1763194403987,3.84825337,142.32,142.31,8.79400452]
[1763194405690,4.89650674,142.32,142.23,3.15]
[1763194405885,2.44825337,142.29,142.23,3.15]
[1763194406691,0.0451097,142.27,142.25,0.05116689]
[1763194406891,0.04890877,142.27,142.25,0.05131898]
[1763194407890,2.44825337,142.26,142.25,0.05131898]
[1763194411092,2.44825337,142.26,142.25,3.20131898]
[1763194411292,2.44825337,142.26,142.25,0.05131898]
[1763194412391,0.04890877,142.27,142.25,0.05131898]
[1763194412597,2.44825337,142.28,142.25,0.05131898]
[1763194428007,2.44825337,142.26,142.15,3.19]
[1763194428212,2.44825337,142.21,142.15,3.19]
[1763194429113,0.04984075,142.19,142.17,0.05406574]
[1763194433416,2.44825337,142.18,142.12,3.19]
[1763194434415,1.22455443,142.17,142.12,3.19]
[1763194434617,0.04617384,142.16,142.14,3.24124297]
[1763194434920,0.04617384,142.16,142.14,3.24331401]
[1763194441025,2.44825337,142.22,142.15,3.19]
[1763194441227,3.67250624,142.22,142.15,3.19]
[1763194441621,1.22425287,142.22,142.15,3.19]
[1763194442125,0.04475342,142.2,142.18,3.19]
[1763194443423,1.22399451,142.24,142.18,3.19]
[1763194444430,2.44825337,142.26,142.18,3.19]
[1763194444628,3.67211874,142.26,142.22,3.22]
[1763194444821,2.79116908,142.26,142.22,3.22]
[1763194449825,1.56730371,142.24,142.22,3.22]
[1763194454539,1.56730371,142.25,142.22,3.22]
[1763194454834,1.56730371,142.25,142.22,3.26601097]
[1763194457731,1.56730371,142.27,142.22,3.26601097]
[1763194465141,1.56730371,142.25,142.22,3.26601097]
[1763194465939,1.56730371,142.23,142.22,0.04601097]
[1763194466143,1.56730371,142.23,142.22,3.37601097]
[1763194471850,1.56730371,142.23,142.22,0.04601097]
[1763194483852,1.56730371,142.23,142.22,3.30601097]
[1763194484052,1.56730371,142.25,142.22,3.30601097]
[1763194491960,1.56730371,142.24,142.22,3.30601097]
[1763194500377,1.56730371,142.24,142.22,0.04601097]
[1763194500771,1.56730371,142.24,142.17,3.26]
[1763194500772,8.03262739,142.24,142.17,3.26]
[1763194500972,1.56730371,142.19,142.15,3.26]
[1763194501178,1.56730371,142.17,142.14,3.26]
[1763194502084,1.56730371,142.15,142.14,3.30792242]
[1763194502277,1.56730371,142.15,142.14,3.26]
[1763194503980,1.56730371,142.17,142.14,3.26]
[1763194504188,1.56730371,142.17,142.14,3.31292824]
[1763194504877,2.45194161,142.18,142.14,3.31292824]
[1763194506688,2.45194161,142.2,142.14,3.31292824]
[1763194506986,2.45194161,142.2,142.16,0.04846143]
[1763194507487,2.45194161,142.2,142.16,3.18846143]
[1763194520892,2.45194161,142.18,142.16,0.04846143]
[1763194522890,2.45194161,142.18,142.11,3.1]
[1763194523098,2.45194161,142.16,142.11,3.1]
[1763194523898,0.04457381,142.15,142.13,3.1]
[1763194524401,0.04457381,142.15,142.12,3.15185716]
[1763194525099,2.45194161,142.14,142.12,0.05185716]
[1763194531194,0.04457381,142.15,142.12,0.05185716]
[1763194532097,2.45194161,142.14,142.12,0.05185716]
[1763194533298,0.44814284,142.12,142.09,3.1]
[1763194533499,2.45194161,142.14,142.09,3.1]
[1763194534402,0.044387,142.13,142.1,0.04778387]
[1763194534591,2.45194161,142.11,142.07,3.22]
[1763194534791,2.45194161,142.11,142.1,0.0536196]
[1763194536297,25.17986983,142.11,141.98,3.22]
[1763194536496,2.45194161,142.05,141.98,3.22]
[1763194537403,0.05071094,142.03,142.01,3.22]
[1763194546205,21.32792822,142.11,142.01,3.22]
[1763194546510,2.45194161,142.09,142.01,3.22]
[1763194547311,0.0538685,142.06,142.05,3.22]
[1763194549913,2.45194161,142.12,142.05,3.22]
[1763194550609,84.5,142.14,142.05,3.22]
[1763194550815,84.5,142.14,142.02,2.45194161]
[1763194550816,0.04448934,142.11,142.08,3.26719239]
[1763194556318,2.49643095,142.11,142.08,3.26719239]
[1763194557816,0.04448934,142.11,142.08,3.26719239]
[1763194564614,2.45194161,142.17,142.09,3.26]
[1763194564820,2.45194161,142.19,142.1,3.26]
[1763194565015,84.5,142.2,142.1,3.26]
[1763194565722,84.5,142.2,142.15,3.26]
[1763194566522,2.45194161,142.19,142.15,3.26]
[1763194566818,1.56915778,142.18,142.15,3.26]
[1763194568128,1.56915778,142.16,142.15,3.26]
[1763194568821,1.56915778,142.18,142.15,3.26]
[1763194569123,1.56915778,142.17,142.15,3.26]
[1763194570629,1.56915778,142.17,142.14,0.05068187]
[1763194570835,1.56915778,142.15,142.14,0.05068187]
[1763194571423,1.56915778,142.15,142.14,3.38068187]
[1763194572528,1.56915778,142.19,142.14,3.38068187]
[1763194576231,84.5,142.2,142.14,3.38068187]
[1763194576430,1.56915778,142.18,142.14,3.38068187]
[1763194577731,86.06915778,142.2,142.14,3.38068187]
[1763194579034,1.56915778,142.18,142.14,3.38068187]
[1763194582336,1.56915778,142.16,142.14,3.38068187]
[1763194586734,1.56915778,142.16,142.14,0.05068187]
[1763194587130,1.56915778,142.16,142.11,3.33]
[1763194587336,1.56915778,142.12,142.11,3.33]
[1763194587936,6.43499295,142.21,142.11,3.33]
[1763194588135,1.56915778,142.12,142.11,3.33]
[1763194588542,0.04668944,142.13,142.11,3.33]
[1763194588742,0.04891215,142.13,142.11,3.38237178]
[1763194592238,1.56915778,142.14,142.11,3.38237178]
[1763194592636,1.56915778,142.16,142.11,3.38237178]
[1763194592838,1.56915778,142.16,142.11,3.33]
[1763194593239,1.56915778,142.16,142.12,0.05411229]
[1763194593446,1.56915778,142.18,142.13,3.33]
[1763194593646,1.56915778,142.18,142.15,3.33]
[1763194605460,6.43499295,142.23,142.15,3.33]
[1763194605661,6.43499295,142.23,142.18,0.05145438]
[1763194606159,6.43499295,142.22,142.18,0.05145438]
[1763194606762,1.56915778,142.19,142.18,0.05145438]
[1763194606962,6.43499295,142.22,142.18,3.23145438]
[1763194607264,7.043,142.36,142.18,3.23145438]
[1763194607265,6.43499295,142.27,142.18,3.23145438]
[1763194607462,1.56915778,142.24,142.22,3.18]
[1763194608269,1.56915778,142.26,142.22,3.18]
[1763194608464,1.56915778,142.26,142.24,3.18]
[1763194608664,1.56915778,142.26,142.25,8.79640325]
[1763194609170,1.56915778,142.26,142.25,11.97640325]
[1763194609865,1.56915778,142.26,142.25,8.79640325]
[1763194610263,1.56915778,142.26,142.13,6.52951191]
[1763194610468,1.56915778,142.19,142.15,3.18]
[1763194611369,0.04816281,142.18,142.17,3.18]
[1763194617271,1.56915778,142.21,142.17,3.18]
[1763194618075,1.56915778,142.22,142.17,3.18]
[1763194618275,1.56915778,142.22,142.19,3.18]
[1763194618572,1.56915778,142.23,142.19,3.18]
[1763194618768,1.56915778,142.23,142.2,3.22468292]
[1763194620471,1.56915778,142.23,142.2,0.04468292]
[1763194620668,1.56915778,142.21,142.2,0.04468292]
[1763194621970,1.56915778,142.21,142.2,3.22468292]
[1763194622172,1.56915778,142.23,142.21,3.18]
[1763194622378,1.56915778,142.23,142.22,8.79765213]
[1763194622779,2.96915778,142.23,142.21,0.05219834]
[1763194623072,1.56915778,142.23,142.17,3.18]
[1763194623273,1.56915778,142.2,142.17,3.18]
[1763194623971,1.615852,142.2,142.17,3.23358899]
[1763194625678,1.615852,142.2,142.17,0.05358899]
[1763194625975,1.56915778,142.18,142.17,0.05358899]
[1763194626175,1.56915778,142.18,142.11,3.04]
[1763194626976,2.45199912,142.18,142.11,3.04]
[1763194627275,0.04715499,142.16,142.14,3.04]
[1763194627476,0.04715499,142.16,142.13,0.04879663]
[1763194627778,2.49915411,142.16,142.13,0.04879663]
[1763194632373,2.45199912,142.14,142.13,0.04879663]
[1763194633183,4.90399824,142.14,142.08,3.15]
[1763194633379,2.45199912,142.14,142.08,3.15]
[1763194633685,2.45199912,142.12,142.08,3.15]
[1763194634079,0.0528265,142.11,142.1,3.15]
[1763194634283,2.45199912,142.12,142.1,3.15]
[1763194634680,8.61703433,142.22,142.1,3.15]
[1763194634884,8.61703433,142.22,142.11,3.15]
[1763194634885,2.45199912,142.2,142.11,3.15]
[1763194635278,0.05031149,142.17,142.15,3.15]
[1763194637590,0.05031149,142.17,142.15,5.60199912]
[1763194637889,8.61703433,142.25,142.16,3.15]
[1763194638090,11.06903345,142.26,142.16,3.15]
[1763194638885,0.04603419,142.22,142.2,0.04541936]
[1763194639490,0.04603419,142.22,142.2,3.19541936]
[1763194639987,0.04603419,142.22,142.2,0.04541936]
[1763194641692,2.49803331,142.22,142.2,0.04541936]
[1763194642292,3.89803331,142.22,142.14,3.15]
[1763194642492,2.49803331,142.22,142.14,3.15]
[1763194643397,2.49803331,142.22,142.17,0.05225391]
[1763194651397,0.04603419,142.22,142.17,0.05225391]
[1763194651696,2.45199912,142.21,142.17,0.05225391]
[1763194652708,0.04603419,142.22,142.17,3.20225391]
[1763194655105,1.22414521,142.21,142.17,3.20225391]
[1763194655608,1.22414521,142.21,142.17,0.05225391]
[1763194656308,3.67614433,142.21,142.17,0.05225391]
[1763194656810,2.45199912,142.19,142.17,0.05225391]
[1763194658008,2.45199912,142.19,142.11,3.1]
[1763194658406,9.84117954,142.21,142.11,3.1]
[1763194658609,2.45199912,142.19,142.11,3.1]
[1763194659415,0.05377267,142.16,142.14,0.04999407]
[1763194661013,0.05377267,142.16,142.14,3.14999407]
[1763194662910,9.84117954,142.21,142.14,3.14999407]
[1763194662911,1.22414521,142.21,142.14,3.14999407]
[1763194664011,0.04722277,142.19,142.14,3.14999407]
[1763194668431,0.04722277,142.19,142.14,0.04999407]
[1763194668625,0.04722277,142.19,142.14,3.14999407]
[1763194677233,6.53559215,142.19,142.14,3.14999407]
[1763194678032,0.04722277,142.19,142.14,3.14999407]
[1763194679033,8.98759127,142.19,142.14,3.14999407]
[1763194680732,2.49922189,142.19,142.14,3.14999407]
[1763194681136,2.45199912,142.17,142.14,0.04999407]
[1763194683335,0.45000593,142.14,142.11,3.1]
[1763194683533,6.48836938,142.18,142.11,3.1]
[1763194684134,6.48836938,142.17,142.11,3.1]
[1763194684333,0.04430647,142.15,142.13,0.04666517]
[1763194685333,2.45199912,142.13,142.08,3.26]
[1763194686738,0.04778477,142.12,142.09,3.30872742]
[1763194687935,2.45199912,142.13,142.09,3.30872742]
[1763194688938,0.04812278,142.12,142.09,3.30872742]
[1763194689735,1.57035957,142.15,142.09,3.30872742]
[1763194689931,1.57035957,142.15,142.09,3.26]
[1763194690932,0.04591129,142.13,142.12,3.11]
[1763194697944,1.57035957,142.15,142.12,3.11]
[1763194698938,1.62361469,142.15,142.12,3.11]
[1763194706847,1.62361469,142.15,142.11,0.0458462]
[1763194707051,1.57035957,142.13,142.11,3.1558462]
[1763194707450,1.57035957,142.13,142.11,0.0458462]
[1763194707954,1.57035957,142.13,142.03,8.71413332]
[1763194707955,8.05872895,142.13,142.06,3.11]
[1763194708254,1.57035957,142.1,142.06,3.11]
[1763194709046,0.05010797,142.09,142.07,3.15538175]
[1763194709250,0.05010797,142.09,142.07,3.15711429]
[1763194709546,1.57035957,142.08,142.07,0.04711429]
[1763194710254,1.62046754,142.09,142.07,0.04711429]
[1763194712549,6.48836938,142.13,142.07,3.15711429]
[1763194712754,1.57035957,142.13,142.07,3.15711429]
[1763194713548,0.04888931,142.11,142.07,3.15711429]
[1763194715855,1.61924888,142.11,142.07,3.15711429]
[1763194716158,1.57035957,142.09,142.07,3.21711429]
[1763194716554,1.57035957,142.09,142.07,0.04711429]
[1763194719056,1.57035957,142.09,142.01,3.17]
[1763194719361,1.57035957,142.05,142.01,3.17]
[1763194720152,1.57035957,142.07,142.01,3.17]
[1763194720456,0.04484624,142.05,142.03,0.05213176]
[1763194721060,1.57035957,142.04,142.03,0.05213176]